fUST/lending_fUST_20240719
["ID","MTS","AMOUNT","RATE_DAILY","PERIOD"]
[332618540,1721356243328,-2383.01,0.00019178,2]
[332618541,1721356243338,-631.01,0.00019178,2]
[332618542,1721356243348,-500.0,0.00019178,2]
[332618543,1721356243358,-500.0,0.00019178,2]
[332618544,1721356243367,-500.0,0.00019178,2]
[332618545,1721356243377,-513.30378212,0.00019178,2]
[332618546,1721356243386,-1973.22,0.00019178,2]
[332618547,1721356243397,-500.0,0.00019178,2]
[332618548,1721356243407,-500.0,0.00019178,2]
[332618549,1721356243417,-500.0,0.00019178,2]
[332618550,1721356243427,-500.0,0.00019178,2]
[332618551,1721356243436,-500.0,0.00019178,2]
[332618552,1721356243445,-500.0,0.00019178,2]
[332618553,1721356243455,-500.06,0.00019178,2]
[332618554,1721356243465,-559.3,0.00019178,2]
[332618555,1721356243474,-500.0,0.00019178,2]
[332618556,1721356243484,-500.0,0.00019178,2]
[332618557,1721356243494,-500.0,0.00019178,2]
[332618558,1721356243503,-697.81,0.00019178,2]
[332618559,1721356243512,-198.590027,0.00019178,2]
[332618560,1721356243522,-500.0,0.00019178,2]
[332618561,1721356243532,-500.0,0.00019178,2]
[332618562,1721356243542,-500.0,0.00019178,2]
[332618563,1721356243551,-540.95548776,0.00019178,2]
[332618564,1721356243561,-1055.79,0.00019178,2]
[332618565,1721356243570,-500.0,0.00019178,2]
[332618566,1721356243580,-500.0,0.00019178,2]
[332618567,1721356243589,-500.0,0.00019178,2]
[332618568,1721356243599,-500.0,0.00019178,2]
[332618569,1721356243608,-4318.02,0.00019178,2]
[332618570,1721356243618,-500.0,0.00019178,2]
[332618571,1721356243627,-500.0,0.00019178,2]
[332618572,1721356243637,-1835.38,0.00019178,2]
[332618573,1721356243648,-500.0,0.00019178,2]
[332618574,1721356243658,-500.0,0.00019178,2]
[332618575,1721356243668,-500.0,0.00019178,2]
[332618576,1721356243677,-841.27,0.00019178,2]
[332618577,1721356243687,-500.0,0.00019178,2]
[332618578,1721356243697,-500.0,0.00019178,2]
[332618579,1721356243707,-500.0,0.00019178,2]
[332618580,1721356243717,-500.0,0.00019178,2]
[332618581,1721356243731,-500.0,0.00019178,2]
[332618583,1721356243740,-500.0,0.00019178,2]
[332618586,1721356243750,-500.0,0.00019178,2]
[332618588,1721356243760,-1610.34,0.00019178,2]
[332618592,1721356243777,-500.0,0.00019178,2]
[332618596,1721356243792,-500.0,0.00019178,2]
[332618599,1721356243804,-500.0,0.00019178,2]
[332618602,1721356243814,-505.02112383,0.00019178,2]
[332618605,1721356243825,-500.0,0.00019178,2]
[332618608,1721356243835,-460.95020587,0.00019178,2]
[332618611,1721356243845,-500.0,0.00019178,2]
[332618614,1721356243855,-500.0,0.00019178,2]
[332618617,1721356243865,-500.0,0.00019178,2]
[332618621,1721356243875,-500.0,0.00019178,2]
[332618624,1721356243885,-500.0,0.00019178,2]
[332618627,1721356243897,-500.0,0.00019178,2]
[332618630,1721356243906,-500.99256661,0.00019178,2]
[332618633,1721356243916,-1194.49,0.00019178,2]
[332618636,1721356243930,-501.99755832,0.00019178,2]
[332618639,1721356243939,-500.0,0.00019178,2]
[332618642,1721356243948,-1929.12,0.00019178,2]
[332618646,1721356243959,-693.94,0.00019178,2]
[332618649,1721356243968,-500.0,0.00019178,2]
[332618652,1721356243978,-501.48827337,0.00019178,2]
[332618655,1721356243988,-500.0,0.00019178,2]
[332618658,1721356243998,-500.0,0.00019178,2]
[332618661,1721356244010,-1787.32,0.00019178,2]
[332618664,1721356244019,-500.0,0.00019178,2]
[332618667,1721356244030,-2290.96,0.00019178,2]
[332618670,1721356244039,-500.0,0.00019178,2]
[332618673,1721356244049,-313.00457431,0.00019178,2]
[332618676,1721356244059,-500.0,0.00019178,2]
[332618679,1721356244069,-500.0,0.00019178,2]
[332618683,1721356244078,-500.0,0.00019178,2]
[332618685,1721356244088,-500.0,0.00019178,2]
[332618690,1721356244099,-500.0,0.00019178,2]
[332618693,1721356244108,-603.22049435,0.00019178,2]
[332618696,1721356244118,-500.0,0.00019178,2]
[332618699,1721356244128,-500.0,0.00019178,2]
[332618701,1721356244138,-550.08695448,0.00019178,2]
[332618703,1721356244149,-500.0,0.00019178,2]
[332618705,1721356244159,-521.63,0.00019178,2]
[332618707,1721356244169,-500.0,0.00019178,2]
[332618709,1721356244179,-700.58,0.00019178,2]
[332618711,1721356244188,-505.24748289,0.00019178,2]
[332618713,1721356244197,-500.0,0.00019178,2]
[332618715,1721356244207,-500.0,0.00019178,2]
[332618717,1721356244216,-517.89249247,0.00019178,2]
[332618719,1721356244226,-514.78540997,0.00019178,2]
[332618722,1721356244235,-841.27,0.00019178,2]
[332618724,1721356244245,-500.0,0.00019178,2]
[332618726,1721356244255,-500.0,0.00019178,2]
[332618728,1721356244265,-500.0,0.00019178,2]
[332618730,1721356244275,-500.0,0.00019178,2]
[332618732,1721356244285,-613.84,0.00019178,2]
[332618734,1721356244296,-500.0,0.00019178,2]
[332618736,1721356244305,-500.0,0.00019178,2]
[332618738,1721356244315,-2317.59,0.00019178,2]
[332618740,1721356244324,-500.0,0.00019178,2]
[332618742,1721356244334,-500.0,0.00019178,2]
[332618744,1721356244343,-2895.05,0.00019178,2]
[332618746,1721356244353,-500.0,0.00019178,2]
[332618748,1721356244362,-500.0,0.00019178,2]
[332618750,1721356244372,-500.0,0.00019178,2]
[332618752,1721356244381,-500.0,0.00019178,2]
[332618754,1721356244391,-500.0,0.00019178,2]
[332618756,1721356244401,-500.0,0.00019178,2]
[332618758,1721356244411,-532.57931181,0.00019178,2]
[332618760,1721356244420,-500.0,0.00019178,2]
[332618762,1721356244431,-500.0,0.00019178,2]
[332618764,1721356244441,-500.0,0.00019178,2]
[332618766,1721356244451,-500.0,0.00019178,2]
[332618768,1721356244460,-500.0,0.00019178,2]
[332618770,1721356244470,-500.0,0.00019178,2]
[332618772,1721356244480,-500.0,0.00019178,2]
[332618774,1721356244490,-510.93763126,0.00019178,2]
[332618776,1721356244500,-1643.38,0.00019178,2]
[332618779,1721356244510,-495.0,0.00019178,2]
[332618781,1721356244520,-500.0,0.00019178,2]
[332618783,1721356244530,-500.0,0.00019178,2]
[332618785,1721356244539,-504.92754036,0.00019178,2]
[332618787,1721356244549,-158.701642,0.00019178,2]
[332618789,1721356244559,-500.0,0.00019178,2]
[332618791,1721356244569,-836.68,0.00019178,2]
[332618793,1721356244578,-500.0,0.00019178,2]
[332618795,1721356244589,-212.04749321,0.00019178,2]
[332618797,1721356244601,-500.0,0.00019178,2]
[332618800,1721356244613,-500.0,0.00019178,2]
[332618802,1721356244628,-500.0,0.00019178,2]
[332618804,1721356244638,-500.0,0.00019178,2]
[332618806,1721356244650,-500.0,0.00019178,2]
[332618808,1721356244661,-500.0,0.00019178,2]
[332618811,1721356244672,-496.63393055,0.00019178,2]
[332618813,1721356244682,-206.97123623,0.00019178,2]
[332618815,1721356244692,-1136.22,0.00019178,2]
[332618817,1721356244702,-502.29702744,0.00019178,2]
[332618819,1721356244711,-510.41194972,0.00019178,2]
[332618821,1721356244722,-1171.33,0.00019178,2]
[332618823,1721356244733,-500.0,0.00019178,2]
[332618825,1721356244742,-500.0,0.00019178,2]
[332618827,1721356244752,-2142.8,0.00019178,2]
[332618829,1721356244761,-500.0,0.00019178,2]
[332618831,1721356244772,-500.0,0.00019178,2]
[332618833,1721356244782,-151.0,0.00019178,2]
[332618835,1721356244791,-151.0,0.00019178,2]
[332618837,1721356244803,-274.646133,0.00019178,2]
[332618839,1721356244813,-1645.11,0.00019178,2]
[332618841,1721356244823,-304.26991489,0.00019178,2]
[332618871,1721356246148,-450.0,0.00017989,2]
[332618872,1721356246158,-500.0,0.00017989,2]
[332618874,1721356246168,-500.0,0.00017989,2]
[332618876,1721356246177,-500.0,0.00017989,2]
[332618878,1721356246187,-500.0,0.00017989,2]
[332618880,1721356246196,-500.0,0.00017989,2]
[332618882,1721356246207,-500.0,0.00017989,2]
[332618884,1721356246217,-500.0,0.00017989,2]
[332618885,1721356246227,-994.9429458,0.00018696,2]
[332618886,1721356246236,-993.98027656,0.00018701,2]
[332618887,1721356246246,-156.77599751,0.00018773,2]
[332618888,1721356246256,-154.96801744,0.00018799,2]
[332618889,1721356246266,-154.79103211,0.00018899,2]
[332618890,1721356246276,-215.69118819,0.00019178,2]
[332618891,1721356246288,-1717.64889692,0.00019178,2]
[332618892,1721356246297,-500.0,0.00019178,2]
[332618893,1721356246309,-500.0,0.00019178,2]
[332618894,1721356246319,-3679.41,0.00019178,2]
[332618895,1721356246328,-500.0,0.00019178,2]
[332618896,1721356246339,-500.0,0.00019178,2]
[332618897,1721356246349,-500.0,0.00019178,2]
[332618898,1721356246358,-500.0,0.00019178,2]
[332618899,1721356246368,-500.0,0.00019178,2]
[332618900,1721356246378,-507.652784,0.00019178,2]
[332618901,1721356246387,-136.98227539,0.00019178,2]
[332618908,1721356246844,-12262.43772461,0.00019178,2]
[332618909,1721356246854,-500.0,0.00019178,2]
[332618910,1721356246864,-500.0,0.00019178,2]
[332618911,1721356246875,-151.0,0.00019178,2]
[332618912,1721356246885,-500.0,0.00019178,2]
[332618913,1721356246896,-157.061246,0.00019178,2]
[332618914,1721356246905,-500.0,0.00019178,2]
[332618915,1721356246915,-840.3234799,0.00019178,2]
[332618916,1721356246927,-36.0265201,0.00019178,2]
[332618917,1721356246936,-225.7834799,0.00019178,2]
[332618918,1721356246948,-347.71960921,0.00019178,2]
[332618919,1721356246958,-372.07039079,0.00019178,2]
[332618920,1721356246974,-685.22960921,0.00019178,2]
[332618921,1721356246984,-1134.02,0.00019178,2]
[332618922,1721356246994,-2081.47,0.00019178,2]
[332618923,1721356247004,-530.65,0.00019178,2]
[332618924,1721356247014,-500.0,0.00019178,2]
[332618925,1721356247024,-500.0,0.00019178,2]
[332618926,1721356247034,-2183.54,0.00019178,2]
[332618927,1721356247044,-500.0,0.00019178,2]
[332618928,1721356247055,-500.0,0.00019178,2]
[332618929,1721356247066,-500.0,0.00019178,2]
[332618930,1721356247077,-500.0,0.00019178,2]
[332618931,1721356247086,-512.20423977,0.00019178,2]
[332618932,1721356247096,-500.0,0.00019178,2]
[332618933,1721356247107,-726.88615102,0.00019178,2]
[332618935,1721356253529,42308.74594411,0.00015953,2]
[332618939,1721356325963,2404.58411934,0.00015995,2]
[332618960,1721357432362,-166.666666,0.00016579,2]
[332618962,1721357432372,-300.0,0.00016595,2]
[332618964,1721357432381,-300.0,0.00016595,2]
[332618966,1721357432391,-10.80081531,0.00016596,2]
[332618979,1721357432590,-1203.6,0.00016596,2]
[332618980,1721357432602,-848.54825264,0.00016596,2]
[332619008,1721357438551,-22837.05093205,0.00016596,2]
[332619010,1721357438561,-31747.11222396,0.00017402,2]
[332619012,1721357438571,-1907.93521092,0.0001769,2]
[332619014,1721357438581,-7967.37061071,0.0001779,2]
[332619016,1721357438591,-7967.37061067,0.00017813,2]
[332619019,1721357438601,-7967.37061067,0.00017835,2]
[332619021,1721357438611,-154.79103211,0.0001784,2]
[332619023,1721357438621,-7967.37061067,0.00017858,2]
[332619024,1721357438631,-445.03329098,0.00017879,2]
[332619026,1721357438640,-500.0,0.00017879,2]
[332619028,1721357438650,-500.0,0.00017879,2]
[332619030,1721357438660,-414.88881153,0.00017879,2]
[332619031,1721357438670,-500.0,0.00017879,2]
[332619032,1721357438680,-500.0,0.00017879,2]
[332619033,1721357438691,-300.45220606,0.00017879,2]
[332619034,1721357438701,-500.0,0.00017879,2]
[332619035,1721357438711,-430.2803562,0.00017879,2]
[332619037,1721357438721,-500.0,0.00017879,2]
[332619039,1721357438731,-500.0,0.00017879,2]
[332619041,1721357438741,-396.09024641,0.00017879,2]
[332619043,1721357438751,-500.0,0.00017879,2]
[332619044,1721357438761,-519.05705016,0.00017879,2]
[332619046,1721357438771,-500.0,0.00017879,2]
[332619048,1721357438781,-500.0,0.00017879,2]
[332619051,1721357438793,-500.0,0.00017879,2]
[332619053,1721357438804,-500.0,0.00017879,2]
[332619055,1721357438814,-500.0,0.00017879,2]
[332619057,1721357438825,-500.0,0.00017879,2]
[332619059,1721357438836,-500.0,0.00017879,2]
[332619061,1721357438846,-590.87724161,0.00017879,2]
[332619063,1721357438855,-500.0,0.00017879,2]
[332619065,1721357438865,-500.0,0.00017879,2]
[332619067,1721357438875,-500.0,0.00017879,2]
[332619069,1721357438885,-500.0,0.00017879,2]
[332619071,1721357438895,-500.0,0.00017879,2]
[332619073,1721357438904,-500.0,0.00017879,2]
[332619075,1721357438914,-500.0,0.00017879,2]
[332619077,1721357438924,-500.0,0.00017879,2]
[332619079,1721357438933,-500.0,0.00017879,2]
[332619081,1721357438942,-500.0,0.00017879,2]
[332619083,1721357438953,-500.0,0.00017879,2]
[332619085,1721357438962,-500.0,0.00017879,2]
[332619087,1721357438972,-500.0,0.00017879,2]
[332619089,1721357438982,-500.0,0.00017879,2]
[332619091,1721357438992,-204.00198053,0.00017879,2]
[332619093,1721357439001,-500.0,0.00017879,2]
[332619095,1721357439011,-7967.37061067,0.0001788,2]
[332619097,1721357439020,-278573.624944,0.0001788,2]
[332619099,1721357439030,-62364.48505938,0.0001789,2]
[332619101,1721357439039,-2000.0,0.0001789,2]
[332619102,1721357439049,-185297.57301968,0.0001799,2]
[332619152,1721357440576,-93276.05192432,0.0001799,2]
[332619154,1721357440586,-100000.0,0.00018,2]
[332619156,1721357440595,-409.5426384,0.00018,2]
[332619158,1721357440604,-287.37045674,0.00018129,2]
[332619160,1721357440614,-240.0,0.00018133,2]
[332619162,1721357440623,-420.0,0.00018255,2]
[332619164,1721357440632,-4527.4092128,0.00018517,2]
[332619166,1721357440642,-287.37045674,0.00018531,2]
[332619168,1721357440651,-1907.93521092,0.00018554,2]
[332619170,1721357440661,-2122.77005368,0.00018629,2]
[332619172,1721357440670,-2425.98470639,0.00018657,2]
[332619174,1721357440679,-5511.47943235,0.00018696,2]
[332619176,1721357440689,-993.98027656,0.00018701,2]
[332619178,1721357440699,-151.1351012,0.00018754,2]
[332619180,1721357440708,-4527.4092128,0.00018773,2]
[332619182,1721357440717,-847.480665,0.00018773,2]
[332619184,1721357440727,-1027.82946815,0.00018773,2]
[332619186,1721357440738,-1659.74681185,0.00018773,2]
[332619188,1721357440750,-664.58886559,0.00018786,2]
[332619190,1721357440761,-404.16174305,0.00018799,2]
[332619193,1721357440772,-155.60455322,0.00018799,2]
[332619195,1721357440784,-156.58671833,0.00018825,2]
[332619197,1721357440793,-1638.39181986,0.00018825,2]
[332619199,1721357440804,-2137.43178425,0.00018825,2]
[332619201,1721357440814,-154.79103211,0.00018825,2]
[332619203,1721357440824,-726.4559758,0.00018825,2]
[332619205,1721357440834,-946.12754339,0.00018825,2]
[332619207,1721357440843,-2137.43178425,0.00018825,2]
[332619209,1721357440852,-441.30036835,0.00018825,2]
[332619211,1721357440862,-726.4559758,0.00018825,2]
[332619213,1721357440871,-156.68771632,0.00018825,2]
[332619215,1721357440880,-166.666666,0.00018839,2]
[332619217,1721357440889,-287.37045674,0.00018899,2]
[332619219,1721357440899,-568.49712228,0.00018899,2]
[332619221,1721357440909,-155.39443755,0.00018899,2]
[332619223,1721357440919,-539.01866729,0.00018899,2]
[332619225,1721357440928,-395.81607683,0.00018899,2]
[332619227,1721357440937,-309.37841004,0.00018899,2]
[332619229,1721357440946,-494.80272899,0.00018899,2]
[332619231,1721357440956,-309.26121486,0.00018899,2]
[332619233,1721357440966,-215.78644239,0.00018899,2]
[332619234,1721357440975,-251.88019181,0.00018899,2]
[332619236,1721357440985,-1212.03624028,0.000189,2]
[332619238,1721357440994,-773.05238989,0.0001891,2]
[332619240,1721357441003,-155.45305119,0.0001891,2]
[332619242,1721357441013,-287.3476314,0.0001891,2]
[332619244,1721357441022,-156.37350607,0.00018921,2]
[332619246,1721357441031,-159.93320028,0.00018921,2]
[332619248,1721357441040,-878.04783051,0.00018921,2]
[332619250,1721357441049,-342.45848981,0.00018921,2]
[332619252,1721357441058,-320.11222392,0.00018945,2]
[332619254,1721357441067,-403.08254894,0.00018989,2]
[332619256,1721357441077,-521.17738443,0.00018989,2]
[332619258,1721357441086,-21281.21747444,0.00018999,2]
[332619261,1721357441100,-222.98492403,0.00018999,2]
[332619263,1721357441110,-17283.56369141,0.00018999,2]
[332619265,1721357441120,-234.05198291,0.00018999,2]
[332619267,1721357441130,-6995.74191931,0.00019102,2]
[332619269,1721357441141,-5480.26395168,0.00019102,2]
[332619271,1721357441152,-287.37045677,0.00019114,2]
[332619273,1721357441163,-427.7,0.00019124,2]
[332619275,1721357441177,-1500.0,0.00019147,2]
[332619277,1721357441186,-196.15176283,0.00019153,2]
[332619279,1721357441196,-199.42799156,0.00019155,2]
[332619281,1721357441206,-941.25374337,0.00019155,2]
[332619284,1721357441218,-402.73067489,0.00019155,2]
[332619286,1721357441230,-4527.4092128,0.00019166,2]
[332619288,1721357441240,-233.884075,0.00019167,2]
[332619290,1721357441251,-233.884075,0.00019167,2]
[332619292,1721357441261,-2843.17391,0.00019167,2]
[332619294,1721357441272,-154.79103211,0.00019177,2]
[332619297,1721357441283,-500.0,0.00019178,2]
[332619299,1721357441294,-503.01085273,0.00019178,2]
[332619301,1721357441303,-500.0,0.00019178,2]
[332619303,1721357441313,-2813.54,0.00019178,2]
[332619304,1721357441322,-500.0,0.00019178,2]
[332619328,1721357441536,-500.0,0.00019178,2]
[332619330,1721357441548,-509.51514965,0.00019178,2]
[332619332,1721357441560,-500.0,0.00019178,2]
[332619334,1721357441570,-502.54723003,0.00019178,2]
[332619336,1721357441581,-500.0,0.00019178,2]
[332619338,1721357441591,-500.0,0.00019178,2]
[332619340,1721357441601,-500.0,0.00019178,2]
[332619342,1721357441613,-1938.94,0.00019178,2]
[332619345,1721357441623,-500.0,0.00019178,2]
[332619347,1721357441633,-505.30920347,0.00019178,2]
[332619349,1721357441643,-500.0,0.00019178,2]
[332619351,1721357441652,-500.0,0.00019178,2]
[332619353,1721357441662,-500.0,0.00019178,2]
[332619355,1721357441674,-500.0,0.00019178,2]
[332619357,1721357441686,-500.0,0.00019178,2]
[332619359,1721357441700,-779.3,0.00019178,2]
[332619361,1721357441709,-500.0,0.00019178,2]
[332619363,1721357441718,-500.0,0.00019178,2]
[332619365,1721357441727,-1418.15,0.00019178,2]
[332619367,1721357441736,-500.0,0.00019178,2]
[332619369,1721357441746,-500.0,0.00019178,2]
[332619371,1721357441755,-2013.67,0.00019178,2]
[332619373,1721357441765,-341.93548628,0.00019178,2]
[332619375,1721357441774,-504.52342988,0.00019178,2]
[332619377,1721357441784,-313.18478137,0.00019178,2]
[332619379,1721357441793,-503.37432755,0.00019178,2]
[332619381,1721357441803,-1316.16,0.00019178,2]
[332619383,1721357441813,-502.59327988,0.00019178,2]
[332619385,1721357441823,-532.50207934,0.00019178,2]
[332619387,1721357441833,-500.0,0.00019178,2]
[332619390,1721357441844,-500.0,0.00019178,2]
[332619391,1721357441854,-500.0,0.00019178,2]
[332619393,1721357441863,-500.0,0.00019178,2]
[332619395,1721357441873,-500.0,0.00019178,2]
[332619397,1721357441883,-517.68151179,0.00019178,2]
[332619399,1721357441895,-500.0,0.00019178,2]
[332619401,1721357441905,-500.0,0.00019178,2]
[332619404,1721357441916,-155.924414,0.00019178,2]
[332619406,1721357441927,-500.0,0.00019178,2]
[332619408,1721357441938,-198.590027,0.00019178,2]
[332619410,1721357441947,-500.0,0.00019178,2]
[332619411,1721357441957,-697.81,0.00019178,2]
[332619414,1721357441967,-501.60639451,0.00019178,2]
[332619416,1721357441977,-500.0,0.00019178,2]
[332619418,1721357441987,-500.0,0.00019178,2]
[332619420,1721357441998,-785.5,0.00019178,2]
[332619422,1721357442007,-500.0,0.00019178,2]
[332619423,1721357442016,-500.0,0.00019178,2]
[332619424,1721357442025,-500.0,0.00019178,2]
[332619425,1721357442034,-505.69005528,0.00019178,2]
[332619426,1721357442044,-547.32,0.00019178,2]
[332619427,1721357442053,-293.55486371,0.00019178,2]
[332619428,1721357442062,-500.0,0.00019178,2]
[332619429,1721357442072,-500.0,0.00019178,2]
[332619430,1721357442081,-500.0,0.00019178,2]
[332619431,1721357442093,-1194.49,0.00019178,2]
[332619432,1721357442104,-500.0,0.00019178,2]
[332619433,1721357442113,-500.0,0.00019178,2]
[332619434,1721357442122,-500.0,0.00019178,2]
[332619435,1721357442132,-2290.96,0.00019178,2]
[332619436,1721357442142,-500.0,0.00019178,2]
[332619437,1721357442151,-500.0,0.00019178,2]
[332619438,1721357442161,-500.0,0.00019178,2]
[332619439,1721357442170,-500.0,0.00019178,2]
[332619440,1721357442180,-500.0,0.00019178,2]
[332619441,1721357442189,-559.3,0.00019178,2]
[332619442,1721357442198,-603.22049435,0.00019178,2]
[332619443,1721357442207,-500.0,0.00019178,2]
[332619444,1721357442216,-550.08695448,0.00019178,2]
[332619445,1721357442225,-540.95548776,0.00019178,2]
[332619446,1721357442234,-521.63,0.00019178,2]
[332619447,1721357442244,-500.0,0.00019178,2]
[332619448,1721357442254,-500.0,0.00019178,2]
[332619449,1721357442263,-500.0,0.00019178,2]
[332619450,1721357442273,-500.0,0.00019178,2]
[332619451,1721357442283,-500.0,0.00019178,2]
[332619452,1721357442292,-500.0,0.00019178,2]
[332619453,1721357442305,-500.0,0.00019178,2]
[332619454,1721357442316,-501.48827337,0.00019178,2]
[332619455,1721357442327,-500.0,0.00019178,2]
[332619456,1721357442337,-500.0,0.00019178,2]
[332619457,1721357442347,-500.0,0.00019178,2]
[332619458,1721357442355,-500.0,0.00019178,2]
[332619459,1721357442364,-500.0,0.00019178,2]
[332619460,1721357442374,-500.0,0.00019178,2]
[332619461,1721357442383,-500.0,0.00019178,2]
[332619462,1721357442393,-500.0,0.00019178,2]
[332619463,1721357442404,-500.0,0.00019178,2]
[332619464,1721357442415,-500.0,0.00019178,2]
[332619465,1721357442426,-500.0,0.00019178,2]
[332619466,1721357442437,-500.0,0.00019178,2]
[332619467,1721357442447,-500.0,0.00019178,2]
[332619468,1721357442460,-502.77171969,0.00019178,2]
[332619469,1721357442471,-505.24748289,0.00019178,2]
[332619470,1721357442481,-500.0,0.00019178,2]
[332619471,1721357442491,-500.0,0.00019178,2]
[332619472,1721357442503,-2317.59,0.00019178,2]
[332619473,1721357442514,-517.89249247,0.00019178,2]
[332619474,1721357442524,-500.0,0.00019178,2]
[332619475,1721357442535,-500.0,0.00019178,2]
[332619476,1721357442545,-313.00457431,0.00019178,2]
[332619477,1721357442555,-495.0,0.00019178,2]
[332619478,1721357442566,-504.92754036,0.00019178,2]
[332619479,1721357442576,-212.04749321,0.00019178,2]
[332619480,1721357442587,-500.0,0.00019178,2]
[332619481,1721357442598,-500.0,0.00019178,2]
[332619482,1721357442608,-500.0,0.00019178,2]
[332619483,1721357442618,-514.78540997,0.00019178,2]
[332619484,1721357442629,-500.0,0.00019178,2]
[332619485,1721357442639,-532.57931181,0.00019178,2]
[332619486,1721357442648,-496.63393055,0.00019178,2]
[332619487,1721357442658,-500.0,0.00019178,2]
[332619488,1721357442670,-500.0,0.00019178,2]
[332619489,1721357442679,-1437.06,0.00019178,2]
[332619490,1721357442690,-502.29702744,0.00019178,2]
[332619491,1721357442702,-500.0,0.00019178,2]
[332619492,1721357442713,-500.0,0.00019178,2]
[332619493,1721357442722,-500.0,0.00019178,2]
[332619494,1721357442732,-517.88258204,0.00019178,2]
[332619495,1721357442744,-500.0,0.00019178,2]
[332619496,1721357442753,-500.0,0.00019178,2]
[332619497,1721357442762,-500.0,0.00019178,2]
[332619498,1721357442771,-757.48,0.00019178,2]
[332619499,1721357442780,-500.0,0.00019178,2]
[332619500,1721357442789,-2510.71,0.00019178,2]
[332619501,1721357442798,-500.0,0.00019178,2]
[332619502,1721357442808,-500.0,0.00019178,2]
[332619503,1721357442818,-500.0,0.00019178,2]
[332619504,1721357442827,-3279.15,0.00019178,2]
[332619505,1721357442836,-500.0,0.00019178,2]
[332619506,1721357442845,-850.13,0.00019178,2]
[332619508,1721357442855,-500.0,0.00019178,2]
[332619510,1721357442864,-736.55,0.00019178,2]
[332619512,1721357442873,-500.0,0.00019178,2]
[332619514,1721357442882,-500.0,0.00019178,2]
[332619516,1721357442891,-500.0,0.00019178,2]
[332619518,1721357442901,-1260.3,0.00019178,2]
[332619520,1721357442910,-151.0,0.00019178,2]
[332619522,1721357442919,-508.54,0.00019178,2]
[332619524,1721357442929,-500.0,0.00019178,2]
[332619526,1721357442938,-500.0,0.00019178,2]
[332619528,1721357442948,-500.0,0.00019178,2]
[332619530,1721357442958,-500.0,0.00019178,2]
[332619532,1721357442968,-154.643178,0.00019178,2]
[332619534,1721357442977,-633.58,0.00019178,2]
[332619536,1721357442987,-500.0,0.00019178,2]
[332619538,1721357442996,-500.0,0.00019178,2]
[332619539,1721357443007,-3362.25,0.00019178,2]
[332619540,1721357443018,-500.0,0.00019178,2]
[332619541,1721357443029,-500.0,0.00019178,2]
[332619542,1721357443039,-500.0,0.00019178,2]
[332619543,1721357443049,-511.09262658,0.00019178,2]
[332619545,1721357443059,-2503.29,0.00019178,2]
[332619547,1721357443069,-530.29,0.00019178,2]
[332619548,1721357443078,-500.0,0.00019178,2]
[332619549,1721357443089,-500.0,0.00019178,2]
[332619550,1721357443101,-513.30378212,0.00019178,2]
[332619551,1721357443111,-501.63057201,0.00019178,2]
[332619552,1721357443122,-1031.85,0.00019178,2]
[332619553,1721357443132,-151.0,0.00019178,2]
[332619554,1721357443145,-151.0,0.00019178,2]
[332619555,1721357443155,-500.0,0.00019178,2]
[332619556,1721357443167,-500.0,0.00019178,2]
[332619557,1721357443177,-500.0,0.00019178,2]
[332619558,1721357443190,-342.52461219,0.00019178,2]